[Event "Titled Tuesday Blitz March 14 Late 2023"]
[White "Thomforde-Toates, Noah"]
[Black "Winslow, Elliott"]
[WhiteFideId "30951992"]
[BlackFideId "2002523"]
[WhiteElo "2601"]
[BlackElo "2201"]
[Result "1-0"]
[Round "01"]
[TimeControl "180+1"]
[Date "2023.03.14"]
[WhiteClock "0:00:11"]
[BlackClock "0:00:01"]

1. c4 {[%clk 0:02:58]}  g6 {[%clk 0:02:59]} 2. g3 {[%clk 0:02:52]}  Bg7 {[%clk 0:02:59]} 3. Bg2 {[%clk 0:02:53]}  e5 {[%clk 0:02:58]} 4. Nc3 {[%clk 0:02:53]}  d6 {[%clk 0:02:59]} 5. d3 {[%clk 0:02:53]}  f5 {[%clk 0:02:57]} 6. Nf3 {[%clk 0:02:51]}  Nf6 {[%clk 0:02:56]} 7. Rb1 {[%clk 0:02:51]}  Nc6 {[%clk 0:02:52]} 8. O-O {[%clk 0:02:50]}  O-O {[%clk 0:02:50]} 9. Bg5 {[%clk 0:02:50]}  h6 {[%clk 0:02:44]} 10. Bxf6 {[%clk 0:02:51]}  Bxf6 {[%clk 0:02:44]} 11. Nd2 {[%clk 0:02:50]}  Ne7 {[%clk 0:02:43]} 12. b4 {[%clk 0:02:48]}  g5 {[%clk 0:02:39]} 13. e3 {[%clk 0:02:44]}  Kg7 {[%clk 0:02:29]} 14. Nd5 {[%clk 0:02:32]}  Ng6 {[%clk 0:02:20]} 15. f4 {[%clk 0:02:23]}  exf4 {[%clk 0:02:17]} 16. exf4 {[%clk 0:02:19]}  g4 {[%clk 0:02:13]} 17. Nb3 {[%clk 0:02:16]}  h5 {[%clk 0:02:12]} 18. Re1 {[%clk 0:02:15]}  h4 {[%clk 0:02:08]} 19. Qe2 {[%clk 0:02:11]}  c6 {[%clk 0:01:55]} 20. Nxf6 {[%clk 0:02:08]}  Qxf6 {[%clk 0:01:55]} 21. Qb2 {[%clk 0:02:05]}  h3 {[%clk 0:01:38]} 22. Bh1 {[%clk 0:01:48]}  Bd7 {[%clk 0:01:34]} 23. Qxf6+ {[%clk 0:01:40]}  Kxf6 {[%clk 0:01:33]} 24. c5 {[%clk 0:01:40]}  d5 {[%clk 0:01:27]} 25. Nd4 {[%clk 0:01:32]}  Rae8 {[%clk 0:01:25]} 26. Kf2 {[%clk 0:01:30]}  Rxe1 {[%clk 0:01:23]} 27. Kxe1 {[%clk 0:01:29]}  Re8+ {[%clk 0:01:23]} 28. Kd2 {[%clk 0:01:29]}  Nf8 {[%clk 0:01:14]} 29. Nc2 {[%clk 0:01:07]}  Ne6 {[%clk 0:01:12]} 30. d4 {[%clk 0:01:04]}  Nc7 {[%clk 0:01:08]} 31. a4 {[%clk 0:01:00]}  a6 {[%clk 0:01:07]} 32. Ne1 {[%clk 0:00:59]}  Rb8 {[%clk 0:00:59]} 33. Nd3 {[%clk 0:00:58]}  b6 {[%clk 0:00:54]} 34. cxb6 {[%clk 0:00:55]}  Rxb6 {[%clk 0:00:53]} 35. Ne5 {[%clk 0:00:55]}  Be8 {[%clk 0:00:53]} 36. Rc1 {[%clk 0:00:37]}  a5 {[%clk 0:00:49]} 37. bxa5 {[%clk 0:00:35]}  Rb2+ {[%clk 0:00:45]} 38. Kd3 {[%clk 0:00:25]}  Rxh2 {[%clk 0:00:43]} 39. Nxc6 {[%clk 0:00:25]}  Na6 {[%clk 0:00:33]} 40. Bxd5 {[%clk 0:00:23]}  Rb2 {[%clk 0:00:18]} 41. Bh1 {[%clk 0:00:22]}  Rb3+ {[%clk 0:00:17]} 42. Kc4 {[%clk 0:00:23]}  Rxg3 {[%clk 0:00:16]} 43. Kb5 {[%clk 0:00:23]}  Nc7+ {[%clk 0:00:15]} 44. Kb6 {[%clk 0:00:23]}  Na8+ {[%clk 0:00:10]} 45. Kb7 {[%clk 0:00:23]}  Ra3 {[%clk 0:00:08]} 46. Kxa8 {[%clk 0:00:23]}  Rxa4 {[%clk 0:00:09]} 47. Kb7 {[%clk 0:00:22]}  g3 {[%clk 0:00:07]} 48. a6 {[%clk 0:00:22]}  g2 {[%clk 0:00:07]} 49. Bxg2 {[%clk 0:00:22]}  hxg2 {[%clk 0:00:07]} 50. Ne5 {[%clk 0:00:20]}  Ke6 {[%clk 0:00:06]} 51. Rg1 {[%clk 0:00:19]}  Kd5 {[%clk 0:00:03]} 52. Rxg2 {[%clk 0:00:18]}  Kxd4 {[%clk 0:00:04]} 53. Rg8 {[%clk 0:00:16]}  Bb5 {[%clk 0:00:02]} 54. a7 {[%clk 0:00:16]}  Ke4 {[%clk 0:00:02]} 55. a8=Q {[%clk 0:00:12]}  Rxa8 {[%clk 0:00:03]} 56. Rxa8 {[%clk 0:00:12]}  Kxf4 {[%clk 0:00:02]} 57. Nf7 {[%clk 0:00:12]}  Ke3 {[%clk 0:00:01]} 58. Nd6 {[%clk 0:00:11]} 1-0


[Site "https://www.chess.com"]

[Event "Titled Tuesday Blitz March 14 Late 2023"]
[White "Tica, Sven"]
[Black "Quispe Santacruz, Javier"]
[WhiteFideId "14526948"]
[BlackFideId "3800920"]
[WhiteElo "2348"]
[BlackElo "1875"]
[Result "1-0"]
[Round "01"]
[TimeControl "180+1"]
[Date "2023.03.14"]
[WhiteClock "0:01:57"]
[BlackClock "0:00:50"]

1. e4 {[%clk 0:02:59]}  c5 {[%clk 0:02:59]} 2. Nc3 {[%clk 0:02:52]}  Nc6 {[%clk 0:02:57]} 3. f4 {[%clk 0:02:52]}  e6 {[%clk 0:02:54]} 4. Nf3 {[%clk 0:02:48]}  Nge7 {[%clk 0:02:44]} 5. e5 {[%clk 0:02:44]}  d5 {[%clk 0:02:42]} 6. Bb5 {[%clk 0:02:32]}  a6 {[%clk 0:02:39]} 7. Bxc6+ {[%clk 0:02:32]}  Nxc6 {[%clk 0:02:40]} 8. Ne2 {[%clk 0:02:32]}  b5 {[%clk 0:02:33]} 9. c3 {[%clk 0:02:30]}  Qb6 {[%clk 0:02:33]} 10. d4 {[%clk 0:02:29]}  Bb7 {[%clk 0:02:31]} 11. O-O {[%clk 0:02:29]}  Be7 {[%clk 0:02:30]} 12. Be3 {[%clk 0:02:30]}  O-O {[%clk 0:02:29]} 13. g4 {[%clk 0:02:26]}  f5 {[%clk 0:02:25]} 14. exf6 {[%clk 0:02:18]}  gxf6 {[%clk 0:02:24]} 15. f5 {[%clk 0:02:14]}  e5 {[%clk 0:02:21]} 16. dxc5 {[%clk 0:02:12]}  Bxc5 {[%clk 0:02:21]} 17. Qxd5+ {[%clk 0:02:11]}  Kh8 {[%clk 0:02:16]} 18. Bxc5 {[%clk 0:02:11]}  Qc7 {[%clk 0:02:12]} 19. Bxf8 {[%clk 0:02:10]}  Nd4 {[%clk 0:02:07]} 20. Qc5 {[%clk 0:02:02]}  Nxe2+ {[%clk 0:02:01]} 21. Kf2 {[%clk 0:02:02]}  Qf7 {[%clk 0:01:40]} 22. Qe7 {[%clk 0:01:59]}  Rxf8 {[%clk 0:01:36]} 23. Qxf7 {[%clk 0:01:59]}  Rxf7 {[%clk 0:01:36]} 24. Kxe2 {[%clk 0:02:00]}  Bd5 {[%clk 0:01:29]} 25. Rfd1 {[%clk 0:02:00]}  Bc4+ {[%clk 0:01:27]} 26. Ke3 {[%clk 0:02:00]}  h5 {[%clk 0:01:20]} 27. h3 {[%clk 0:02:00]}  e4 {[%clk 0:01:15]} 28. Nh4 {[%clk 0:01:56]}  hxg4 {[%clk 0:01:04]} 29. hxg4 {[%clk 0:01:57]}  Bd3 {[%clk 0:01:00]} 30. Ng6+ {[%clk 0:01:57]}  Kg7 {[%clk 0:01:00]} 31. Rh1 {[%clk 0:01:57]}  Rd7 {[%clk 0:00:54]} 32. Rh8 {[%clk 0:01:58]}  Bc2 {[%clk 0:00:50]} 33. Rah1 {[%clk 0:01:57]} 1-0


[Site "https://www.chess.com"]

[Event "Titled Tuesday Blitz March 14 Late 2023"]
[White "Urazayev, Arystanbek"]
[Black "Mirimanian, Hayk"]
[WhiteFideId "13709810"]
[BlackFideId "4700180"]
[WhiteElo "2479"]
[BlackElo "2280"]
[Result "0-1"]
[Round "01"]
[TimeControl "180+1"]
[Date "2023.03.14"]
[WhiteClock "0:00:14"]
[BlackClock "0:00:45"]

1. d4 {[%clk 0:03:00]}  e6 {[%clk 0:02:59]} 2. c4 {[%clk 0:03:00]}  Nf6 {[%clk 0:02:53]} 3. Nf3 {[%clk 0:03:00]}  Bb4+ {[%clk 0:02:51]} 4. Bd2 {[%clk 0:02:59]}  Qe7 {[%clk 0:02:49]} 5. g3 {[%clk 0:02:58]}  Nc6 {[%clk 0:02:40]} 6. Bg2 {[%clk 0:02:57]}  Bxd2+ {[%clk 0:02:36]} 7. Nbxd2 {[%clk 0:02:50]}  a5 {[%clk 0:02:28]} 8. O-O {[%clk 0:02:47]}  d6 {[%clk 0:02:28]} 9. a3 {[%clk 0:02:43]}  O-O {[%clk 0:02:20]} 10. Qc2 {[%clk 0:02:30]}  e5 {[%clk 0:01:58]} 11. d5 {[%clk 0:02:26]}  Nb8 {[%clk 0:01:58]} 12. b4 {[%clk 0:02:26]}  e4 {[%clk 0:01:53]} 13. Nd4 {[%clk 0:02:16]}  e3 {[%clk 0:01:52]} 14. N2b3 {[%clk 0:01:50]}  exf2+ {[%clk 0:01:50]} 15. Rxf2 {[%clk 0:01:50]}  axb4 {[%clk 0:01:45]} 16. axb4 {[%clk 0:01:34]}  Rxa1+ {[%clk 0:01:45]} 17. Nxa1 {[%clk 0:01:35]}  Qe3 {[%clk 0:01:45]} 18. Nf5 {[%clk 0:01:36]}  Bxf5 {[%clk 0:01:44]} 19. Qxf5 {[%clk 0:01:37]}  Qc1+ {[%clk 0:01:38]} 20. Rf1 {[%clk 0:01:37]}  Qxc4 {[%clk 0:01:39]} 21. Nc2 {[%clk 0:01:37]}  Nbd7 {[%clk 0:01:39]} 22. Qd3 {[%clk 0:01:22]}  Qxd3 {[%clk 0:01:33]} 23. exd3 {[%clk 0:01:23]}  Nb6 {[%clk 0:01:34]} 24. Ne3 {[%clk 0:01:19]}  Re8 {[%clk 0:01:34]} 25. Kf2 {[%clk 0:01:20]}  Re5 {[%clk 0:01:32]} 26. Rc1 {[%clk 0:01:09]}  g6 {[%clk 0:01:06]} 27. Rxc7 {[%clk 0:01:03]}  Rxe3 {[%clk 0:01:06]} 28. Rxb7 {[%clk 0:00:36]}  Nbxd5 {[%clk 0:01:03]} 29. b5 {[%clk 0:00:17]}  Ng4+ {[%clk 0:00:51]} 30. Kf1 {[%clk 0:00:17]}  Rxd3 {[%clk 0:00:51]} 31. Be4 {[%clk 0:00:15]}  Rb3 {[%clk 0:00:45]} 32. Bxd5 {[%clk 0:00:14]}  Ne3+ {[%clk 0:00:45]} 0-1


[Site "https://www.chess.com"]

[Event "Titled Tuesday Blitz March 14 Late 2023"]
[White "Vachier-Lagrave, Maxime"]
[Black "Janaszak, Dawid"]
[WhiteFideId "623539"]
[BlackFideId "1119206"]
[WhiteElo "2740"]
[BlackElo "2220"]
[Result "1-0"]
[Round "01"]
[TimeControl "180+1"]
[Date "2023.03.14"]
[WhiteClock "0:00:50"]
[BlackClock "0:00:04"]

1. e4 {[%clk 0:02:56]}  c5 {[%clk 0:02:59]} 2. Nf3 {[%clk 0:02:55]}  Nc6 {[%clk 0:02:59]} 3. Bb5 {[%clk 0:02:54]}  g6 {[%clk 0:02:54]} 4. O-O {[%clk 0:02:50]}  Bg7 {[%clk 0:02:52]} 5. c3 {[%clk 0:02:48]}  Nf6 {[%clk 0:02:52]} 6. Qa4 {[%clk 0:02:47]}  O-O {[%clk 0:02:46]} 7. d4 {[%clk 0:02:46]}  cxd4 {[%clk 0:02:38]} 8. cxd4 {[%clk 0:02:47]}  d5 {[%clk 0:02:24]} 9. e5 {[%clk 0:02:44]}  Ne4 {[%clk 0:02:25]} 10. Nc3 {[%clk 0:02:32]}  Bg4 {[%clk 0:02:17]} 11. Be3 {[%clk 0:02:28]}  Bxf3 {[%clk 0:02:10]} 12. gxf3 {[%clk 0:02:28]}  Nxc3 {[%clk 0:02:09]} 13. bxc3 {[%clk 0:02:29]}  e6 {[%clk 0:02:04]} 14. Rab1 {[%clk 0:02:23]}  Qh4 {[%clk 0:02:01]} 15. Kh1 {[%clk 0:02:20]}  Rac8 {[%clk 0:01:49]} 16. Rg1 {[%clk 0:02:13]}  Qh5 {[%clk 0:01:32]} 17. Be2 {[%clk 0:02:08]}  Ne7 {[%clk 0:01:13]} 18. Rxb7 {[%clk 0:02:05]}  Nf5 {[%clk 0:01:11]} 19. Qc2 {[%clk 0:01:37]}  Bh6 {[%clk 0:00:56]} 20. f4 {[%clk 0:01:36]}  Qh3 {[%clk 0:00:52]} 21. Qd2 {[%clk 0:01:30]}  Rc6 {[%clk 0:00:32]} 22. Bg4 {[%clk 0:01:28]}  Qh4 {[%clk 0:00:30]} 23. Bxf5 {[%clk 0:01:24]}  exf5 {[%clk 0:00:28]} 24. Rxa7 {[%clk 0:01:21]}  Qh3 {[%clk 0:00:23]} 25. Qe2 {[%clk 0:00:59]}  Rxc3 {[%clk 0:00:22]} 26. Rg3 {[%clk 0:00:59]}  Qh4 {[%clk 0:00:20]} 27. Kg2 {[%clk 0:00:59]}  Bxf4 {[%clk 0:00:18]} 28. Bxf4 {[%clk 0:00:59]}  Rfc8 {[%clk 0:00:10]} 29. e6 {[%clk 0:00:55]}  Qxf4 {[%clk 0:00:06]} 30. exf7+ {[%clk 0:00:54]}  Kh8 {[%clk 0:00:06]} 31. Qe8+ {[%clk 0:00:53]}  Rxe8 {[%clk 0:00:04]} 32. fxe8=R# {[%clk 0:00:50]} 1-0


[Site "https://www.chess.com"]

[Event "Titled Tuesday Blitz March 14 Late 2023"]
[White "Weetik, Vjacheslav"]
[Black "Tsyhanchuk, Stanislav"]
[WhiteFideId "4153472"]
[BlackFideId "13505130"]
[WhiteElo "2469"]
[BlackElo "2173"]
[Result "1-0"]
[Round "01"]
[TimeControl "180+1"]
[Date "2023.03.14"]
[WhiteClock "0:00:14"]
[BlackClock "0:00:24"]

1. d4 {[%clk 0:02:56]}  Nf6 {[%clk 0:02:58]} 2. Bf4 {[%clk 0:02:53]}  e6 {[%clk 0:02:54]} 3. e3 {[%clk 0:02:53]}  d5 {[%clk 0:02:53]} 4. Nd2 {[%clk 0:02:53]}  c5 {[%clk 0:02:53]} 5. c3 {[%clk 0:02:53]}  Nc6 {[%clk 0:02:53]} 6. Bd3 {[%clk 0:02:53]}  b6 {[%clk 0:02:49]} 7. Ngf3 {[%clk 0:02:46]}  Bb7 {[%clk 0:02:49]} 8. Ne5 {[%clk 0:02:44]}  Bd6 {[%clk 0:02:43]} 9. Bb5 {[%clk 0:02:13]}  Bxe5 {[%clk 0:02:42]} 10. dxe5 {[%clk 0:02:08]}  Nd7 {[%clk 0:02:35]} 11. Qg4 {[%clk 0:02:01]}  g6 {[%clk 0:02:29]} 12. Nf3 {[%clk 0:01:54]}  h5 {[%clk 0:02:17]} 13. Qg3 {[%clk 0:01:41]}  c4 {[%clk 0:01:45]} 14. Nd4 {[%clk 0:01:23]}  Qc7 {[%clk 0:01:37]} 15. Nxe6 {[%clk 0:01:08]}  fxe6 {[%clk 0:01:32]} 16. Qxg6+ {[%clk 0:01:08]}  Kd8 {[%clk 0:01:21]} 17. Qxe6 {[%clk 0:01:07]}  a6 {[%clk 0:01:01]} 18. Ba4 {[%clk 0:00:57]}  b5 {[%clk 0:00:59]} 19. Bc2 {[%clk 0:00:52]}  Ncxe5 {[%clk 0:00:49]} 20. O-O-O {[%clk 0:00:27]}  Qc6 {[%clk 0:00:41]} 21. Qf5 {[%clk 0:00:24]}  Re8 {[%clk 0:00:27]} 22. e4 {[%clk 0:00:24]}  Qg6 {[%clk 0:00:20]} 23. Qxg6 {[%clk 0:00:16]}  Nxg6 {[%clk 0:00:20]} 24. Bg5+ {[%clk 0:00:16]}  Kc7 {[%clk 0:00:19]} 25. exd5 {[%clk 0:00:17]}  Nge5 {[%clk 0:00:19]} 26. d6+ {[%clk 0:00:17]}  Kb8 {[%clk 0:00:15]} 27. Rhe1 {[%clk 0:00:16]}  a5 {[%clk 0:00:14]} 28. Kb1 {[%clk 0:00:06]}  Ka7 {[%clk 0:00:14]} 29. Be3+ {[%clk 0:00:06]}  Ka6 {[%clk 0:00:14]} 30. Bd4 {[%clk 0:00:06]}  Nc6 {[%clk 0:00:13]} 31. Be3 {[%clk 0:00:05]}  Nde5 {[%clk 0:00:12]} 32. Bf5 {[%clk 0:00:04]}  Rad8 {[%clk 0:00:12]} 33. d7 {[%clk 0:00:05]}  Re7 {[%clk 0:00:11]} 34. Bg5 {[%clk 0:00:05]}  Rexd7 {[%clk 0:00:08]} 35. Bxd8 {[%clk 0:00:04]}  Nxd8 {[%clk 0:00:04]} 36. Bxd7 {[%clk 0:00:04]}  Nxd7 {[%clk 0:00:04]} 37. Rxd7 {[%clk 0:00:04]}  Nc6 {[%clk 0:00:05]} 38. Re6 {[%clk 0:00:03]}  Kb6 {[%clk 0:00:05]} 39. Rdd6 {[%clk 0:00:03]}  b4 {[%clk 0:00:05]} 40. Rxc6+ {[%clk 0:00:03]}  Bxc6 {[%clk 0:00:04]} 41. Rxc6+ {[%clk 0:00:03]}  Kxc6 {[%clk 0:00:05]} 42. Kc2 {[%clk 0:00:04]}  Kd5 {[%clk 0:00:05]} 43. Kd2 {[%clk 0:00:03]}  Ke4 {[%clk 0:00:05]} 44. Ke2 {[%clk 0:00:03]}  b3 {[%clk 0:00:05]} 45. a3 {[%clk 0:00:03]}  a4 {[%clk 0:00:05]} 46. f3+ {[%clk 0:00:04]}  Kf4 {[%clk 0:00:06]} 47. g3+ {[%clk 0:00:04]}  Kf5 {[%clk 0:00:05]} 48. Ke3 {[%clk 0:00:05]}  Ke5 {[%clk 0:00:06]} 49. h3 {[%clk 0:00:05]}  Kf5 {[%clk 0:00:07]} 50. Kd4 {[%clk 0:00:05]}  Kg5 {[%clk 0:00:06]} 51. Kxc4 {[%clk 0:00:05]}  h4 {[%clk 0:00:07]} 52. gxh4+ {[%clk 0:00:05]}  Kxh4 {[%clk 0:00:08]} 53. Kb4 {[%clk 0:00:06]}  Kxh3 {[%clk 0:00:09]} 54. Kxa4 {[%clk 0:00:06]}  Kg3 {[%clk 0:00:09]} 55. Kxb3 {[%clk 0:00:07]}  Kxf3 {[%clk 0:00:10]} 56. Kc4 {[%clk 0:00:08]}  Ke2 {[%clk 0:00:11]} 57. Kd5 {[%clk 0:00:08]}  Kd1 {[%clk 0:00:12]} 58. c4 {[%clk 0:00:09]}  Kc1 {[%clk 0:00:13]} 59. b4 {[%clk 0:00:10]}  Kb1 {[%clk 0:00:13]} 60. a4 {[%clk 0:00:10]}  Ka1 {[%clk 0:00:14]} 61. a5 {[%clk 0:00:11]}  Ka2 {[%clk 0:00:15]} 62. a6 {[%clk 0:00:11]}  Kb1 {[%clk 0:00:16]} 63. b5 {[%clk 0:00:11]}  Ka1 {[%clk 0:00:17]} 64. c5 {[%clk 0:00:12]}  Ka2 {[%clk 0:00:18]} 65. b6 {[%clk 0:00:13]}  Kb1 {[%clk 0:00:19]} 66. c6 {[%clk 0:00:13]}  Ka1 {[%clk 0:00:20]} 67. c7 {[%clk 0:00:14]}  Ka2 {[%clk 0:00:21]} 68. b7 {[%clk 0:00:14]}  Kb1 {[%clk 0:00:22]} 69. a7 {[%clk 0:00:15]}  Ka1 {[%clk 0:00:22]} 70. a8=Q+ {[%clk 0:00:15]}  Kb1 {[%clk 0:00:21]} 71. b8=Q+ {[%clk 0:00:15]}  Kc1 {[%clk 0:00:22]} 72. c8=Q+ {[%clk 0:00:15]}  Kd1 {[%clk 0:00:23]} 73. Qb2 {[%clk 0:00:14]}  Ke1 {[%clk 0:00:24]} 74. Qcc1# {[%clk 0:00:14]} 1-0


[Site "https://www.chess.com"]

[Event "Titled Tuesday Blitz March 14 Late 2023"]
[White "Womacka, Mathias"]
[Black "Lenderman, Aleksandr"]
[WhiteFideId "4611390"]
[BlackFideId "2021285"]
[WhiteElo "2377"]
[BlackElo "2607"]
[Result "0-1"]
[Round "01"]
[TimeControl "180+1"]
[Date "2023.03.14"]
[WhiteClock "0:00:15"]
[BlackClock "0:01:11"]

1. e4 {[%clk 0:02:59]}  e5 {[%clk 0:03:00]} 2. Nf3 {[%clk 0:02:58]}  Nf6 {[%clk 0:02:59]} 3. Nxe5 {[%clk 0:02:57]}  d6 {[%clk 0:03:00]} 4. Nf3 {[%clk 0:02:56]}  Nxe4 {[%clk 0:03:00]} 5. d4 {[%clk 0:02:56]}  d5 {[%clk 0:02:59]} 6. Bd3 {[%clk 0:02:56]}  Nc6 {[%clk 0:02:53]} 7. O-O {[%clk 0:02:56]}  Be7 {[%clk 0:02:53]} 8. c4 {[%clk 0:02:55]}  Nb4 {[%clk 0:02:50]} 9. Be2 {[%clk 0:02:54]}  O-O {[%clk 0:02:50]} 10. Nc3 {[%clk 0:02:51]}  Bf5 {[%clk 0:02:46]} 11. a3 {[%clk 0:02:49]}  Nxc3 {[%clk 0:02:46]} 12. bxc3 {[%clk 0:02:50]}  Nc6 {[%clk 0:02:46]} 13. cxd5 {[%clk 0:02:50]}  Qxd5 {[%clk 0:02:47]} 14. Bf4 {[%clk 0:02:50]}  Bd6 {[%clk 0:02:43]} 15. c4 {[%clk 0:02:46]}  Qe4 {[%clk 0:02:36]} 16. Bxd6 {[%clk 0:02:45]}  cxd6 {[%clk 0:02:37]} 17. Re1 {[%clk 0:02:38]}  Qf4 {[%clk 0:02:33]} 18. g3 {[%clk 0:02:15]}  Qh6 {[%clk 0:02:30]} 19. d5 {[%clk 0:02:10]}  Na5 {[%clk 0:02:29]} 20. Nd4 {[%clk 0:02:07]}  Bh3 {[%clk 0:02:22]} 21. Bg4 {[%clk 0:01:46]}  Bxg4 {[%clk 0:01:44]} 22. Qxg4 {[%clk 0:01:47]}  Qf6 {[%clk 0:01:45]} 23. Nf5 {[%clk 0:01:26]}  g6 {[%clk 0:01:40]} 24. Ne3 {[%clk 0:01:15]}  Nb3 {[%clk 0:01:39]} 25. Rab1 {[%clk 0:01:14]}  Nc5 {[%clk 0:01:40]} 26. Kg2 {[%clk 0:01:04]}  Rfe8 {[%clk 0:01:38]} 27. Qf3 {[%clk 0:01:03]}  Qxf3+ {[%clk 0:01:34]} 28. Kxf3 {[%clk 0:01:03]}  Re4 {[%clk 0:01:34]} 29. Rec1 {[%clk 0:00:47]}  Rae8 {[%clk 0:01:29]} 30. Rc3 {[%clk 0:00:47]}  f5 {[%clk 0:01:28]} 31. h4 {[%clk 0:00:41]}  Kg7 {[%clk 0:01:26]} 32. Ng2 {[%clk 0:00:34]}  h6 {[%clk 0:01:23]} 33. Re3 {[%clk 0:00:19]}  Rxe3+ {[%clk 0:01:18]} 34. Nxe3 {[%clk 0:00:20]}  Re4 {[%clk 0:01:18]} 35. Rc1 {[%clk 0:00:19]}  Kf6 {[%clk 0:01:16]} 36. Rc3 {[%clk 0:00:18]}  b6 {[%clk 0:01:16]} 37. Ng2 {[%clk 0:00:18]}  g5 {[%clk 0:01:15]} 38. hxg5+ {[%clk 0:00:17]}  hxg5 {[%clk 0:01:16]} 39. Ne3 {[%clk 0:00:17]}  Ke5 {[%clk 0:01:16]} 40. g4 {[%clk 0:00:16]}  Rf4+ {[%clk 0:01:11]} 41. Kg3 {[%clk 0:00:15]}  Ne4+ {[%clk 0:01:11]} 0-1


[Site "https://www.chess.com"]

[Event "Titled Tuesday Blitz March 14 Late 2023"]
[White "Yedidia, Daniel"]
[Black "Sailer, Mike"]
[WhiteFideId "30905907"]
[BlackFideId "2012901"]
[WhiteElo "2554"]
[BlackElo "2109"]
[Result "0-1"]
[Round "01"]
[TimeControl "180+1"]
[Date "2023.03.14"]
[WhiteClock "0:00:01"]
[BlackClock "0:00:08"]

1. d4 {[%clk 0:03:00]}  d5 {[%clk 0:02:58]} 2. c4 {[%clk 0:03:00]}  Bf5 {[%clk 0:02:54]} 3. Nc3 {[%clk 0:02:57]}  e6 {[%clk 0:02:54]} 4. Qb3 {[%clk 0:02:57]}  Nc6 {[%clk 0:02:54]} 5. Nf3 {[%clk 0:02:53]}  Bb4 {[%clk 0:02:54]} 6. Bf4 {[%clk 0:02:25]}  Nf6 {[%clk 0:02:52]} 7. e3 {[%clk 0:02:25]}  O-O {[%clk 0:02:50]} 8. cxd5 {[%clk 0:02:23]}  exd5 {[%clk 0:02:41]} 9. a3 {[%clk 0:02:19]}  Bxc3+ {[%clk 0:02:40]} 10. bxc3 {[%clk 0:02:18]}  Na5 {[%clk 0:02:37]} 11. Qb4 {[%clk 0:02:12]}  c6 {[%clk 0:02:38]} 12. Be2 {[%clk 0:02:02]}  Ne4 {[%clk 0:02:36]} 13. O-O {[%clk 0:02:01]}  b5 {[%clk 0:02:26]} 14. Ne5 {[%clk 0:01:58]}  f6 {[%clk 0:02:12]} 15. Nf3 {[%clk 0:01:54]}  Nc4 {[%clk 0:02:10]} 16. a4 {[%clk 0:01:54]}  a5 {[%clk 0:02:00]} 17. Qb3 {[%clk 0:01:45]}  Ned2 {[%clk 0:01:58]} 18. Nxd2 {[%clk 0:01:44]}  Nxd2 {[%clk 0:01:59]} 19. Qb2 {[%clk 0:01:35]}  Nxf1 {[%clk 0:01:58]} 20. Bxf1 {[%clk 0:01:35]}  bxa4 {[%clk 0:01:54]} 21. Rxa4 {[%clk 0:01:34]}  Rf7 {[%clk 0:01:28]} 22. h3 {[%clk 0:01:31]}  Qc8 {[%clk 0:01:22]} 23. Qa2 {[%clk 0:01:29]}  Rfa7 {[%clk 0:01:15]} 24. c4 {[%clk 0:01:28]}  Be6 {[%clk 0:01:07]} 25. c5 {[%clk 0:01:21]}  Qd8 {[%clk 0:01:00]} 26. Qb1 {[%clk 0:01:11]}  Qd7 {[%clk 0:00:55]} 27. Bd3 {[%clk 0:01:09]}  h6 {[%clk 0:00:54]} 28. Qd1 {[%clk 0:01:01]}  Bf5 {[%clk 0:00:49]} 29. Be2 {[%clk 0:00:57]}  Rb7 {[%clk 0:00:45]} 30. Kh2 {[%clk 0:00:57]}  Rb4 {[%clk 0:00:45]} 31. Ra1 {[%clk 0:00:42]}  a4 {[%clk 0:00:44]} 32. g4 {[%clk 0:00:41]}  Bg6 {[%clk 0:00:34]} 33. Ra3 {[%clk 0:00:36]}  Qb7 {[%clk 0:00:33]} 34. Bd3 {[%clk 0:00:27]}  Bxd3 {[%clk 0:00:32]} 35. Qxd3 {[%clk 0:00:23]}  Rb3 {[%clk 0:00:32]} 36. Rxb3 {[%clk 0:00:22]}  Qxb3 {[%clk 0:00:32]} 37. Qg6 {[%clk 0:00:21]}  Qb7 {[%clk 0:00:18]} 38. Bxh6 {[%clk 0:00:12]}  a3 {[%clk 0:00:17]} 39. g5 {[%clk 0:00:09]}  Qf7 {[%clk 0:00:09]} 40. Qf5 {[%clk 0:00:02]}  gxh6 {[%clk 0:00:09]} 41. gxf6 {[%clk 0:00:01]}  a2 {[%clk 0:00:08]} 0-1


[Site "https://www.chess.com"]

[Event "Titled Tuesday Blitz March 14 Late 2023"]
[White "Yeritsyan, Hayk"]
[Black "Zakhartsov, Vladimir"]
[WhiteFideId "13307320"]
[BlackFideId "4145097"]
[WhiteElo "2449"]
[BlackElo "2521"]
[Result "0-1"]
[Round "01"]
[TimeControl "180+1"]
[Date "2023.03.14"]
[WhiteClock "0:01:08"]
[BlackClock "0:00:49"]

1. d4 {[%clk 0:02:48]}  d5 {[%clk 0:02:52]} 2. Nf3 {[%clk 0:02:48]}  Nf6 {[%clk 0:02:52]} 3. e3 {[%clk 0:02:48]}  c5 {[%clk 0:02:50]} 4. Bd3 {[%clk 0:02:48]}  Nc6 {[%clk 0:02:49]} 5. c3 {[%clk 0:02:48]}  Bg4 {[%clk 0:02:49]} 6. Nbd2 {[%clk 0:02:48]}  e6 {[%clk 0:02:49]} 7. Qa4 {[%clk 0:02:48]}  Bxf3 {[%clk 0:02:26]} 8. Nxf3 {[%clk 0:02:49]}  Bd6 {[%clk 0:02:26]} 9. Bb5 {[%clk 0:02:46]}  Qc7 {[%clk 0:02:25]} 10. Bxc6+ {[%clk 0:02:45]}  bxc6 {[%clk 0:02:25]} 11. dxc5 {[%clk 0:02:44]}  Bxc5 {[%clk 0:02:25]} 12. Qc2 {[%clk 0:02:45]}  O-O {[%clk 0:02:24]} 13. O-O {[%clk 0:02:45]}  a5 {[%clk 0:02:24]} 14. c4 {[%clk 0:02:45]}  Rfc8 {[%clk 0:02:23]} 15. Bd2 {[%clk 0:02:45]}  a4 {[%clk 0:02:23]} 16. Rac1 {[%clk 0:02:45]}  Qb7 {[%clk 0:02:22]} 17. Rfd1 {[%clk 0:02:44]}  Ne4 {[%clk 0:02:22]} 18. Be1 {[%clk 0:02:44]}  h6 {[%clk 0:02:21]} 19. Nd2 {[%clk 0:02:42]}  Nf6 {[%clk 0:02:20]} 20. Nf3 {[%clk 0:02:41]}  Bd6 {[%clk 0:02:18]} 21. Bc3 {[%clk 0:02:38]}  Ne4 {[%clk 0:02:16]} 22. Nd2 {[%clk 0:02:35]}  Nxc3 {[%clk 0:02:13]} 23. Qxc3 {[%clk 0:02:35]}  Rcb8 {[%clk 0:02:13]} 24. Rb1 {[%clk 0:02:17]}  Be7 {[%clk 0:02:11]} 25. b3 {[%clk 0:02:15]}  axb3 {[%clk 0:02:09]} 26. axb3 {[%clk 0:02:12]}  Qb4 {[%clk 0:02:06]} 27. Qxb4 {[%clk 0:02:07]}  Bxb4 {[%clk 0:02:04]} 28. Nf3 {[%clk 0:02:05]}  Bc3 {[%clk 0:01:55]} 29. cxd5 {[%clk 0:01:47]}  cxd5 {[%clk 0:01:54]} 30. Nd4 {[%clk 0:01:47]}  Ra3 {[%clk 0:01:47]} 31. g3 {[%clk 0:01:32]}  Bxd4 {[%clk 0:01:47]} 32. Rxd4 {[%clk 0:01:29]}  Raxb3 {[%clk 0:01:47]} 33. Rxb3 {[%clk 0:01:30]}  Rxb3 {[%clk 0:01:47]} 34. e4 {[%clk 0:01:31]}  Rb5 {[%clk 0:01:37]} 35. exd5 {[%clk 0:01:31]}  exd5 {[%clk 0:01:38]} 36. Ra4 {[%clk 0:01:30]}  Rb8 {[%clk 0:01:37]} 37. Kf1 {[%clk 0:01:29]}  Rd8 {[%clk 0:01:33]} 38. Ke2 {[%clk 0:01:30]}  Kh7 {[%clk 0:01:32]} 39. Kd3 {[%clk 0:01:28]}  Kg6 {[%clk 0:01:32]} 40. Kd4 {[%clk 0:01:29]}  Kf5 {[%clk 0:01:30]} 41. f3 {[%clk 0:01:27]}  h5 {[%clk 0:01:28]} 42. Ra5 {[%clk 0:01:25]}  Ke6 {[%clk 0:01:26]} 43. Ra6+ {[%clk 0:01:24]}  Rd6 {[%clk 0:01:26]} 44. Ra7 {[%clk 0:01:21]}  Rb6 {[%clk 0:01:15]} 45. Ra4 {[%clk 0:01:20]}  Rc6 {[%clk 0:01:09]} 46. Rb4 {[%clk 0:01:19]}  g5 {[%clk 0:01:07]} 47. Ra4 {[%clk 0:01:17]}  f6 {[%clk 0:01:06]} 48. h3 {[%clk 0:01:15]}  Kd6 {[%clk 0:00:56]} 49. g4 {[%clk 0:01:14]}  h4 {[%clk 0:00:53]} 50. Rb4 {[%clk 0:01:13]}  Rc4+ {[%clk 0:00:49]} 51. Rxc4 {[%clk 0:01:12]}  dxc4 {[%clk 0:00:50]} 52. Kxc4 {[%clk 0:01:12]}  Ke5 {[%clk 0:00:51]} 53. Kd3 {[%clk 0:01:13]}  Kf4 {[%clk 0:00:52]} 54. Ke2 {[%clk 0:01:13]}  Kg3 {[%clk 0:00:52]} 55. f4 {[%clk 0:01:13]}  gxf4 {[%clk 0:00:50]} 56. Kf1 {[%clk 0:01:07]}  Kxh3 {[%clk 0:00:49]} 57. Kf2 {[%clk 0:01:08]}  Kxg4 {[%clk 0:00:49]} 0-1


[Site "https://www.chess.com"]